[Event "Early-Titled-Tuesday-Blitz-April-23-2024"]
[Site "Chess.com"]
[Date "2024.04.23"]
[Round "4"]
[White "arenal72"]
[Black "Seochesspie"]
[Result "0-1"]
[WhiteElo "2622"]
[BlackElo "2904"]
[TimeControl "180+1"]
[EndTime "8:41:31 PDT"]
[Termination "Seochesspie won by resignation"]

1. Nf3 {[%clk 0:03:00.9]} 1... Nf6 {[%clk 0:03:00]} 2. g3 {[%clk 0:02:59.4]}
2... b5 {[%clk 0:03:00.1]} 3. Bg2 {[%clk 0:02:56.9]} 3... Bb7 {[%clk 0:03:00.6]}
4. O-O {[%clk 0:02:56]} 4... e6 {[%clk 0:03:01]} 5. d4 {[%clk 0:02:55.3]} 5...
h6 {[%clk 0:02:55.4]} 6. a4 {[%clk 0:02:49.8]} 6... b4 {[%clk 0:02:55.3]} 7. c4
{[%clk 0:02:49.5]} 7... bxc3 {[%clk 0:02:54]} 8. bxc3 {[%clk 0:02:49.6]} 8...
Be7 {[%clk 0:02:50.8]} 9. Ba3 {[%clk 0:02:48]} 9... O-O {[%clk 0:02:50.3]} 10.
Ne5 {[%clk 0:02:37.4]} 10... Bxg2 {[%clk 0:02:49.9]} 11. Kxg2 {[%clk 0:02:38.3]}
11... d6 {[%clk 0:02:42.3]} 12. Nd3 {[%clk 0:02:37.7]} 12... Nbd7 {[%clk
0:02:36.7]} 13. Nd2 {[%clk 0:02:35.9]} 13... c5 {[%clk 0:02:34.4]} 14. dxc5
{[%clk 0:02:24.7]} 14... Nxc5 {[%clk 0:02:33.2]} 15. Nxc5 {[%clk 0:02:11.3]}
15... dxc5 {[%clk 0:02:34.1]} 16. Qc2 {[%clk 0:02:11.1]} 16... Rb8 {[%clk
0:02:27.9]} 17. e4 {[%clk 0:02:05.1]} 17... Qc7 {[%clk 0:02:27]} 18. Nc4 {[%clk
0:01:59.6]} 18... Nd7 {[%clk 0:02:26.1]} 19. Rab1 {[%clk 0:01:48.8]} 19... Nb6
{[%clk 0:02:07.8]} 20. Ne3 {[%clk 0:01:28.4]} 20... Qc6 {[%clk 0:02:03.4]} 21.
a5 {[%clk 0:01:26.5]} 21... Nd7 {[%clk 0:02:03.6]} 22. Nc4 {[%clk 0:01:18.8]}
22... Nf6 {[%clk 0:01:58.1]} 23. f3 {[%clk 0:01:17.7]} 23... Rb5 {[%clk
0:01:39.4]} 24. Ne5 {[%clk 0:01:01]} 24... Qa6 {[%clk 0:01:35.1]} 25. Qe2 {[%clk
0:00:39.7]} 25... Rxa5 {[%clk 0:01:28.1]} 26. Qxa6 {[%clk 0:00:36.4]} 26... Rxa6
{[%clk 0:01:29]} 27. Bc1 {[%clk 0:00:32.1]} 27... Rb6 {[%clk 0:01:19.8]} 28. Ra1
{[%clk 0:00:26.8]} 28... Ra8 {[%clk 0:01:16]} 29. Be3 {[%clk 0:00:21.3]} 29...
Rb3 {[%clk 0:01:05]} 30. Rfc1 {[%clk 0:00:19.4]} 30... Bd6 {[%clk 0:00:57.1]}
31. Nc4 {[%clk 0:00:18.4]} 31... Bf8 {[%clk 0:00:57.4]} 32. Na5 {[%clk
0:00:17.7]} 32... Rb2+ {[%clk 0:00:54.4]} 33. Kh3 {[%clk 0:00:17.8]} 33... Nd7
{[%clk 0:00:53.5]} 34. Nc6 {[%clk 0:00:16]} 34... a6 {[%clk 0:00:50.4]} 35. Rd1
{[%clk 0:00:13.8]} 35... Nb6 {[%clk 0:00:48.5]} 36. Rd8 {[%clk 0:00:12.7]} 36...
Rxd8 {[%clk 0:00:46.6]} 37. Nxd8 {[%clk 0:00:13.6]} 37... Nc4 {[%clk 0:00:45]}
38. Bg1 {[%clk 0:00:13.1]} 38... Ne5 {[%clk 0:00:37.7]} 39. f4 {[%clk
0:00:09.6]} 39... Nf3 {[%clk 0:00:37.8]} 40. Nc6 {[%clk 0:00:08.6]} 40... h5
{[%clk 0:00:30.6]} 41. Rf1 {[%clk 0:00:06.1]} 41... Nd2 {[%clk 0:00:25.4]} 42.
Ra1 {[%clk 0:00:03.2]} 42... Nf3 {[%clk 0:00:19.1]} 43. Rf1 {[%clk 0:00:03.1]}
43... Nxg1+ {[%clk 0:00:19.2]} 44. Rxg1 {[%clk 0:00:03.9]} 44... Rb6 {[%clk
0:00:17.4]} 45. Ne5 {[%clk 0:00:04.2]} 45... f6 {[%clk 0:00:16.9]} 46. Nc4
{[%clk 0:00:03.8]} 46... Rb3 {[%clk 0:00:16.7]} 47. Ra1 {[%clk 0:00:04.4]} 47...
Rxc3 {[%clk 0:00:16.7]} 48. Nb6 {[%clk 0:00:04.9]} 48... Re3 {[%clk 0:00:13.9]}
49. Rxa6 {[%clk 0:00:04.9]} 49... Rxe4 {[%clk 0:00:14]} 50. Nd7 {[%clk
0:00:05.5]} 50... Be7 {[%clk 0:00:12.8]} 51. Ra7 {[%clk 0:00:04.5]} 51... Kf7
{[%clk 0:00:12.4]} 52. Nxc5 {[%clk 0:00:04.6]} 52... Re2 {[%clk 0:00:11.5]} 53.
Nb7 {[%clk 0:00:04.8]} 53... g5 {[%clk 0:00:09.4]} 54. Nd6+ {[%clk 0:00:04.9]}
54... Kf8 {[%clk 0:00:09.3]} 55. Ra8+ {[%clk 0:00:04.5]} 55... Kg7 {[%clk
0:00:09.5]} 56. Ne8+ {[%clk 0:00:05.2]} 56... Kg6 {[%clk 0:00:09.1]} 57. fxg5
{[%clk 0:00:05.3]} 57... fxg5 {[%clk 0:00:10]} 58. g4 {[%clk 0:00:05.6]} 58...
Re3+ {[%clk 0:00:09]} 59. Kg2 {[%clk 0:00:06.1]} 59... hxg4 {[%clk 0:00:09.3]}
60. Ra6 {[%clk 0:00:04.6]} 60... Kf7 {[%clk 0:00:06.8]} 61. Nc7 {[%clk
0:00:04.6]} 61... Bf6 {[%clk 0:00:06]} 62. Ra7 {[%clk 0:00:03.7]} 62... Kg6
{[%clk 0:00:06.3]} 63. Ra6 {[%clk 0:00:03.8]} 63... Kf5 {[%clk 0:00:06]} 64.
Ra5+ {[%clk 0:00:04.2]} 64... Be5 {[%clk 0:00:06.2]} 65. Nb5 {[%clk 0:00:04.5]}
65... Re2+ {[%clk 0:00:06]} 66. Kf1 {[%clk 0:00:05.1]} 66... Rxh2 {[%clk
0:00:04.9]} 67. Nd6+ {[%clk 0:00:05.4]} 67... Kf4 {[%clk 0:00:05.2]} 68. Ra4+
{[%clk 0:00:05.5]} 68... Kg3 {[%clk 0:00:04.1]} 69. Ne4+ {[%clk 0:00:04]} 69...
Kh4 {[%clk 0:00:03.1]} 70. Nf2 {[%clk 0:00:04.6]} 70... Kh5 {[%clk 0:00:01.3]}
71. Nxg4 {[%clk 0:00:03.5]} 71... Rh4 {[%clk 0:00:02.2]} 72. Nf6+ {[%clk
0:00:03.3]} 72... Bxf6 {[%clk 0:00:02.1]} 73. Rxh4+ {[%clk 0:00:03.1]} 73...
Kxh4 {[%clk 0:00:02.3]} 0-1

[Event "Early-Titled-Tuesday-Blitz-April-23-2024"]
[Site "Chess.com"]
[Date "2024.04.23"]
[Round "4"]
[White "vladgoncharov"]
[Black "Naruna_Chan"]
[Result "0-1"]
[WhiteElo "2591"]
[BlackElo "2405"]
[TimeControl "180+1"]
[EndTime "8:41:31 PDT"]
[Termination "Naruna_Chan won by checkmate"]

1. d4 {[%clk 0:03:00.9]} 1... d5 {[%clk 0:02:59.5]} 2. c4 {[%clk 0:03:00.5]}
2... e6 {[%clk 0:02:59.8]} 3. Nc3 {[%clk 0:03:00.3]} 3... Nf6 {[%clk 0:03:00.4]}
4. cxd5 {[%clk 0:02:58.8]} 4... exd5 {[%clk 0:03:00.4]} 5. Bg5 {[%clk
0:02:58.8]} 5... c6 {[%clk 0:03:00.5]} 6. e3 {[%clk 0:02:58.6]} 6... Be7 {[%clk
0:03:01.1]} 7. Bd3 {[%clk 0:02:57.9]} 7... O-O {[%clk 0:03:01.7]} 8. Nge2 {[%clk
0:02:57.8]} 8... h6 {[%clk 0:03:02.3]} 9. Bh4 {[%clk 0:02:57.4]} 9... Re8 {[%clk
0:03:00.2]} 10. O-O {[%clk 0:02:47.9]} 10... Ne4 {[%clk 0:02:57.8]} 11. Bxe7
{[%clk 0:02:47.5]} 11... Qxe7 {[%clk 0:02:58.1]} 12. Qc2 {[%clk 0:02:46.4]}
12... Nd7 {[%clk 0:02:48.6]} 13. Rae1 {[%clk 0:02:36.2]} 13... Ndf6 {[%clk
0:02:46.3]} 14. f3 {[%clk 0:02:32.8]} 14... Nxc3 {[%clk 0:02:43.8]} 15. Nxc3
{[%clk 0:02:32.4]} 15... Qb4 {[%clk 0:02:34.7]} 16. a3 {[%clk 0:02:27]} 16...
Qb6 {[%clk 0:02:32.6]} 17. g4 {[%clk 0:02:24.4]} 17... Qc7 {[%clk 0:01:59.1]}
18. Qg2 {[%clk 0:02:00.3]} 18... c5 {[%clk 0:01:52.5]} 19. g5 {[%clk 0:01:42.5]}
19... hxg5 {[%clk 0:01:48.8]} 20. Qxg5 {[%clk 0:01:42]} 20... Bh3 {[%clk
0:01:36.5]} 21. Rf2 {[%clk 0:01:17.2]} 21... cxd4 {[%clk 0:01:35.3]} 22. Nb5
{[%clk 0:01:02.8]} 22... Qe5 {[%clk 0:01:25.5]} 23. Qxe5 {[%clk 0:00:59.9]}
23... Rxe5 {[%clk 0:01:26.4]} 24. Nxd4 {[%clk 0:00:59.2]} 24... Rae8 {[%clk
0:01:19.7]} 25. Rfe2 {[%clk 0:00:58.2]} 25... a6 {[%clk 0:01:13.3]} 26. Kf2
{[%clk 0:00:56.8]} 26... Rc8 {[%clk 0:00:52.3]} 27. Rg1 {[%clk 0:00:53.9]} 27...
Kf8 {[%clk 0:00:44.1]} 28. Rc2 {[%clk 0:00:29.1]} 28... Rxc2+ {[%clk 0:00:40.2]}
29. Bxc2 {[%clk 0:00:26.4]} 29... Re8 {[%clk 0:00:35.5]} 30. Bd3 {[%clk
0:00:17.3]} 30... Rc8 {[%clk 0:00:35]} 31. Ke2 {[%clk 0:00:17.5]} 31... Bd7
{[%clk 0:00:22.7]} 32. Kd2 {[%clk 0:00:16.7]} 32... g6 {[%clk 0:00:18.5]} 33.
Rc1 {[%clk 0:00:15]} 33... Rxc1 {[%clk 0:00:18.6]} 34. Kxc1 {[%clk 0:00:15.4]}
34... Ke7 {[%clk 0:00:18.8]} 35. Kd2 {[%clk 0:00:15.5]} 35... Ne8 {[%clk
0:00:18.4]} 36. Kc3 {[%clk 0:00:15]} 36... Nd6 {[%clk 0:00:15.5]} 37. Kb4 {[%clk
0:00:14.2]} 37... Kd8 {[%clk 0:00:08.7]} 38. a4 {[%clk 0:00:11.8]} 38... Kc7
{[%clk 0:00:08.2]} 39. a5 {[%clk 0:00:12.1]} 39... Bc6 {[%clk 0:00:06.5]} 40.
Kc5 {[%clk 0:00:10.9]} 40... Nc8 {[%clk 0:00:05.7]} 41. f4 {[%clk 0:00:08]}
41... Ne7 {[%clk 0:00:04.3]} 42. Nf3 {[%clk 0:00:07.8]} 42... f6 {[%clk
0:00:01.3]} 43. Nd4 {[%clk 0:00:06.9]} 43... f5 {[%clk 0:00:01.6]} 44. h4 {[%clk
0:00:06.6]} 44... Ng8 {[%clk 0:00:02.1]} 45. Nf3 {[%clk 0:00:06.3]} 45... Nf6
{[%clk 0:00:02.7]} 46. Ne5 {[%clk 0:00:04.2]} 46... Ng4 {[%clk 0:00:03.2]} 47.
Nxg6 {[%clk 0:00:01.4]} 47... Nxe3 {[%clk 0:00:03.1]} 48. h5 {[%clk 0:00:01.9]}
48... Ng4 {[%clk 0:00:02.9]} 49. Bxf5 {[%clk 0:00:01.5]} 49... Nh6 {[%clk
0:00:03.8]} 50. Bd3 {[%clk 0:00:01.7]} 50... Bd7 {[%clk 0:00:04.1]} 51. Kd4
{[%clk 0:00:02.6]} 51... Be6 {[%clk 0:00:04.2]} 52. Ne5 {[%clk 0:00:02.9]} 52...
Bg4 {[%clk 0:00:04.7]} 53. Nf3 {[%clk 0:00:03.5]} 53... Bxf3 {[%clk 0:00:04.8]}
54. Ke5 {[%clk 0:00:03.1]} 54... Bxh5 {[%clk 0:00:05]} 55. Kf6 {[%clk 0:00:04]}
55... Bf3 {[%clk 0:00:04.9]} 56. Kg5 {[%clk 0:00:04.9]} 56... Nf7+ {[%clk
0:00:04.7]} 57. Kf6 {[%clk 0:00:04.7]} 57... Nd6 {[%clk 0:00:05.1]} 58. f5
{[%clk 0:00:04.3]} 58... Be4 {[%clk 0:00:05.1]} 59. Be2 {[%clk 0:00:04]} 59...
Bxf5 {[%clk 0:00:05.3]} 60. Ke5 {[%clk 0:00:04.5]} 60... Be4 {[%clk 0:00:05.8]}
61. Kd4 {[%clk 0:00:04.8]} 61... Kc6 {[%clk 0:00:05.5]} 62. b4 {[%clk
0:00:04.6]} 62... Nb5+ {[%clk 0:00:05.7]} 63. Ke3 {[%clk 0:00:04.3]} 63... Nc3
{[%clk 0:00:06.1]} 64. Bg4 {[%clk 0:00:03.6]} 64... Na2 {[%clk 0:00:06.6]} 65.
Bc8 {[%clk 0:00:01.6]} 65... Nxb4 {[%clk 0:00:06.6]} 66. Kd4 {[%clk 0:00:02.3]}
66... Nc2+ {[%clk 0:00:05.8]} 67. Kc3 {[%clk 0:00:02.5]} 67... b5 {[%clk
0:00:05.8]} 68. Be6 {[%clk 0:00:02.9]} 68... b4+ {[%clk 0:00:06.2]} 69. Kb3
{[%clk 0:00:03.1]} 69... Kb5 {[%clk 0:00:06.7]} 70. Bd7+ {[%clk 0:00:02.8]}
70... Kxa5 {[%clk 0:00:06.8]} 71. Bc8 {[%clk 0:00:03.5]} 71... Kb6 {[%clk
0:00:07.2]} 72. Ka4 {[%clk 0:00:03.9]} 72... a5 {[%clk 0:00:07.1]} 73. Bd7
{[%clk 0:00:04.1]} 73... Nd4 {[%clk 0:00:06.9]} 74. Be8 {[%clk 0:00:03.6]} 74...
Nc6 {[%clk 0:00:07.5]} 75. Bf7 {[%clk 0:00:03.5]} 75... Bc2# {[%clk 0:00:07.5]}
0-1

[Event "Early-Titled-Tuesday-Blitz-April-23-2024"]
[Site "Chess.com"]
[Date "2024.04.23"]
[Round "4"]
[White "Smiechu"]
[Black "klimkoj"]
[Result "0-1"]
[WhiteElo "2471"]
[BlackElo "2919"]
[TimeControl "180+1"]
[EndTime "8:41:37 PDT"]
[Termination "klimkoj won by resignation"]

1. e4 {[%clk 0:03:00.3]} 1... c5 {[%clk 0:02:59.7]} 2. Nf3 {[%clk 0:02:59.6]}
2... d6 {[%clk 0:02:58.4]} 3. d4 {[%clk 0:02:59.6]} 3... cxd4 {[%clk 0:02:59.3]}
4. Nxd4 {[%clk 0:02:59.7]} 4... Nf6 {[%clk 0:02:59.8]} 5. Nc3 {[%clk 0:03:00.2]}
5... a6 {[%clk 0:03:00]} 6. Be3 {[%clk 0:03:00.4]} 6... e5 {[%clk 0:03:00.3]} 7.
Nb3 {[%clk 0:03:00.3]} 7... Be6 {[%clk 0:03:00.4]} 8. Qd2 {[%clk 0:03:00.9]}
8... Nbd7 {[%clk 0:03:00.2]} 9. O-O-O {[%clk 0:03:00.6]} 9... Rc8 {[%clk
0:03:00]} 10. f4 {[%clk 0:03:00.6]} 10... b5 {[%clk 0:03:00.3]} 11. f5 {[%clk
0:02:59.8]} 11... Bc4 {[%clk 0:03:00.1]} 12. g4 {[%clk 0:02:55.2]} 12... Nxg4
{[%clk 0:02:30.9]} 13. Rg1 {[%clk 0:02:54.7]} 13... Nxe3 {[%clk 0:02:28.1]} 14.
Qxe3 {[%clk 0:02:54]} 14... Qb6 {[%clk 0:02:28.2]} 15. Qg3 {[%clk 0:02:45.1]}
15... Nf6 {[%clk 0:02:22.8]} 16. Nd5 {[%clk 0:01:58.8]} 16... Bxd5 {[%clk
0:02:20.4]} 17. exd5 {[%clk 0:01:59]} 17... g6 {[%clk 0:02:14.9]} 18. Bd3 {[%clk
0:01:53.8]} 18... Nh5 {[%clk 0:01:28.1]} 19. Qf3 {[%clk 0:01:35.8]} 19... Bh6+
{[%clk 0:01:26.7]} 20. Kb1 {[%clk 0:01:35.7]} 20... Qe3 {[%clk 0:01:25.2]} 21.
Qg4 {[%clk 0:01:16.1]} 21... Nf6 {[%clk 0:01:17.1]} 22. Qh4 {[%clk 0:01:12.9]}
22... Bg7 {[%clk 0:01:06.9]} 23. Rge1 {[%clk 0:00:58.2]} 23... Qb6 {[%clk
0:01:05.3]} 24. Qh3 {[%clk 0:00:51.7]} 24... O-O {[%clk 0:01:01.4]} 25. fxg6
{[%clk 0:00:48]} 25... hxg6 {[%clk 0:01:02.3]} 26. Qg2 {[%clk 0:00:46.9]} 26...
Nh5 {[%clk 0:00:55]} 27. h4 {[%clk 0:00:26.5]} 27... Nf4 {[%clk 0:00:52.1]} 28.
Qg3 {[%clk 0:00:26.5]} 28... a5 {[%clk 0:00:35.4]} 29. Rh1 {[%clk 0:00:26.2]}
29... a4 {[%clk 0:00:33.5]} 30. Nc1 {[%clk 0:00:25.5]} 30... Nh5 {[%clk
0:00:31]} 31. Qg5 {[%clk 0:00:22.5]} 31... a3 {[%clk 0:00:31.5]} 32. Be2 {[%clk
0:00:20.5]} 32... axb2 {[%clk 0:00:28.2]} 33. Nd3 {[%clk 0:00:19.1]} 33... e4
{[%clk 0:00:28.8]} 34. Bxh5 {[%clk 0:00:18.2]} 34... exd3 {[%clk 0:00:28.6]} 35.
Rxd3 {[%clk 0:00:17.8]} 35... Ra8 {[%clk 0:00:20.1]} 36. Bxg6 {[%clk 0:00:12.2]}
36... fxg6 {[%clk 0:00:19.4]} 37. Qxg6 {[%clk 0:00:12.6]} 37... Qf2 {[%clk
0:00:15.6]} 38. Rg1 {[%clk 0:00:11]} 38... Qf1+ {[%clk 0:00:14.4]} 39. Rd1
{[%clk 0:00:11.3]} 39... Qf7 {[%clk 0:00:14.3]} 40. Qg2 {[%clk 0:00:10.7]} 40...
Qa7 {[%clk 0:00:11.3]} 41. a3 {[%clk 0:00:07.8]} 41... Rf7 {[%clk 0:00:11.7]}
42. Rd3 {[%clk 0:00:07]} 42... b4 {[%clk 0:00:10.1]} 43. Rg3 {[%clk 0:00:05.1]}
43... bxa3 {[%clk 0:00:09.9]} 44. Ka2 {[%clk 0:00:05.5]} 44... Qb7 {[%clk
0:00:09.5]} 45. Rb1 {[%clk 0:00:03.9]} 45... Ra5 {[%clk 0:00:09.2]} 46. h5
{[%clk 0:00:04]} 46... Qxd5+ {[%clk 0:00:09.4]} 47. Qxd5 {[%clk 0:00:04.2]}
47... Rxd5 {[%clk 0:00:10.3]} 48. h6 {[%clk 0:00:04.7]} 48... Rc5 {[%clk
0:00:07.6]} 49. hxg7 {[%clk 0:00:04.8]} 49... Rxg7 {[%clk 0:00:08.5]} 50. Rxa3
{[%clk 0:00:04.9]} 50... Rxc2 {[%clk 0:00:08]} 51. Rxb2 {[%clk 0:00:05.3]} 51...
Rxb2+ {[%clk 0:00:08.1]} 52. Kxb2 {[%clk 0:00:05.4]} 52... Rg2+ {[%clk 0:00:09]}
53. Kc1 {[%clk 0:00:05.3]} 53... Kf7 {[%clk 0:00:08.8]} 54. Kd1 {[%clk
0:00:05.2]} 54... Ke6 {[%clk 0:00:09.2]} 55. Ra4 {[%clk 0:00:05.5]} 55... Ke5
{[%clk 0:00:09.4]} 56. Rb4 {[%clk 0:00:05.7]} 56... Kd5 {[%clk 0:00:09.5]} 57.
Ra4 {[%clk 0:00:05.9]} 57... Rb2 {[%clk 0:00:09.8]} 58. Rh4 {[%clk 0:00:05.6]}
58... Kc5 {[%clk 0:00:10.5]} 59. Rg4 {[%clk 0:00:05.9]} 59... d5 {[%clk
0:00:10.9]} 60. Rh4 {[%clk 0:00:06.2]} 60... Rg2 {[%clk 0:00:11.4]} 61. Kc1
{[%clk 0:00:05.8]} 61... Kb5 {[%clk 0:00:11.4]} 62. Kd1 {[%clk 0:00:05.7]} 62...
Kc5 {[%clk 0:00:12]} 63. Kc1 {[%clk 0:00:06.1]} 63... Rg5 {[%clk 0:00:12.7]} 64.
Kd1 {[%clk 0:00:05.8]} 64... d4 {[%clk 0:00:13.6]} 65. Rh8 {[%clk 0:00:05.1]}
65... Kc4 {[%clk 0:00:13.7]} 66. Rc8+ {[%clk 0:00:05.2]} 66... Kd3 {[%clk
0:00:14]} 67. Ke1 {[%clk 0:00:02.8]} 67... Rg1+ {[%clk 0:00:14]} 68. Kf2 {[%clk
0:00:03.1]} 68... Ra1 {[%clk 0:00:14]} 69. Rb8 {[%clk 0:00:03.1]} 69... Ra2+
{[%clk 0:00:10.9]} 70. Ke1 {[%clk 0:00:02.4]} 70... Ra1+ {[%clk 0:00:11.4]} 71.
Kf2 {[%clk 0:00:02.8]} 71... Kc2 {[%clk 0:00:09.5]} 72. Ke2 {[%clk 0:00:02.9]}
72... d3+ {[%clk 0:00:09.9]} 73. Ke3 {[%clk 0:00:03.3]} 73... Re1+ {[%clk
0:00:09.6]} 74. Kf2 {[%clk 0:00:03.7]} 74... d2 {[%clk 0:00:10.5]} 75. Rc8+
{[%clk 0:00:03.7]} 75... Kb3 {[%clk 0:00:11]} 76. Rb8+ {[%clk 0:00:04]} 76...
Kc4 {[%clk 0:00:11.5]} 77. Rc8+ {[%clk 0:00:04.4]} 77... Kb5 {[%clk 0:00:12.1]}
78. Rb8+ {[%clk 0:00:04.6]} 78... Kc6 {[%clk 0:00:12.6]} 79. Rd8 {[%clk
0:00:05]} 79... d1=Q {[%clk 0:00:12.6]} 0-1

[Event "Early-Titled-Tuesday-Blitz-April-23-2024"]
[Site "Chess.com"]
[Date "2024.04.23"]
[Round "4"]
[White "Fh2411"]
[Black "blitzking1729"]
[Result "1/2-1/2"]
[WhiteElo "2569"]
[BlackElo "2758"]
[TimeControl "180+1"]
[EndTime "8:41:37 PDT"]
[Termination "Game drawn by repetition"]

1. d4 {[%clk 0:02:59.7]} 1... d6 {[%clk 0:02:48.6]} 2. Nf3 {[%clk 0:02:58.3]}
2... g6 {[%clk 0:02:39]} 3. Bf4 {[%clk 0:02:52.4]} 3... Bg7 {[%clk 0:02:39.2]}
4. e3 {[%clk 0:02:52.9]} 4... Nd7 {[%clk 0:02:36.8]} 5. h3 {[%clk 0:02:48.4]}
5... e5 {[%clk 0:02:35.9]} 6. Bh2 {[%clk 0:02:48.5]} 6... Nh6 {[%clk 0:02:35.5]}
7. c3 {[%clk 0:02:35.8]} 7... O-O {[%clk 0:02:33]} 8. Bc4 {[%clk 0:02:36.1]}
8... Qe7 {[%clk 0:02:29.4]} 9. O-O {[%clk 0:02:35.4]} 9... e4 {[%clk 0:02:29.3]}
10. Nfd2 {[%clk 0:02:34.4]} 10... c6 {[%clk 0:02:29.3]} 11. Bb3 {[%clk
0:02:31.3]} 11... Kh8 {[%clk 0:02:26.7]} 12. c4 {[%clk 0:02:28.1]} 12... f5
{[%clk 0:02:26.7]} 13. Nc3 {[%clk 0:02:28.8]} 13... Nf7 {[%clk 0:02:23.4]} 14.
Qc2 {[%clk 0:02:22.8]} 14... Nf6 {[%clk 0:02:23.1]} 15. a4 {[%clk 0:02:03.3]}
15... a5 {[%clk 0:02:22.8]} 16. Rae1 {[%clk 0:01:59.7]} 16... Be6 {[%clk
0:02:21.3]} 17. f3 {[%clk 0:01:52.5]} 17... d5 {[%clk 0:02:21.3]} 18. cxd5
{[%clk 0:01:46.1]} 18... cxd5 {[%clk 0:02:22.2]} 19. Nb5 {[%clk 0:01:45.7]}
19... Rfc8 {[%clk 0:02:21.2]} 20. Qd1 {[%clk 0:01:45.6]} 20... Nd8 {[%clk
0:02:05.7]} 21. fxe4 {[%clk 0:01:34.5]} 21... dxe4 {[%clk 0:02:04.2]} 22. Bxe6
{[%clk 0:01:32.7]} 22... Nxe6 {[%clk 0:02:05.1]} 23. Qb3 {[%clk 0:01:15.2]}
23... Rd8 {[%clk 0:02:00.8]} 24. Nc4 {[%clk 0:01:14.5]} 24... Nd5 {[%clk
0:01:57.9]} 25. Ne5 {[%clk 0:01:04.6]} 25... Rac8 {[%clk 0:01:37.9]} 26. Rc1
{[%clk 0:01:04]} 26... Bh6 {[%clk 0:01:37.3]} 27. Rxc8 {[%clk 0:00:55.1]} 27...
Rxc8 {[%clk 0:01:36.4]} 28. Qxd5 {[%clk 0:00:54.3]} 28... Bxe3+ {[%clk
0:01:36.2]} 29. Kh1 {[%clk 0:00:54.9]} 29... Kg7 {[%clk 0:01:29.1]} 30. Nc4
{[%clk 0:00:48.5]} 30... Bg5 {[%clk 0:01:19.9]} 31. Be5+ {[%clk 0:00:48.4]}
31... Kh6 {[%clk 0:01:17.7]} 32. Nbd6 {[%clk 0:00:35.5]} 32... Rd8 {[%clk
0:01:08.3]} 33. Qxb7 {[%clk 0:00:34.2]} 33... Qxb7 {[%clk 0:00:52.6]} 34. Nxb7
{[%clk 0:00:35.1]} 34... Rd5 {[%clk 0:00:53.5]} 35. Nbxa5 {[%clk 0:00:27.8]}
35... Nxd4 {[%clk 0:00:52.2]} 36. b4 {[%clk 0:00:22.1]} 36... e3 {[%clk
0:00:48.8]} 37. Bxd4 {[%clk 0:00:19.5]} 37... Rxd4 {[%clk 0:00:49]} 38. Re1
{[%clk 0:00:20]} 38... f4 {[%clk 0:00:48.2]} 39. g3 {[%clk 0:00:12.8]} 39... f3
{[%clk 0:00:47.8]} 40. Nxe3 {[%clk 0:00:09.6]} 40... f2 {[%clk 0:00:18.6]} 41.
Nf5+ {[%clk 0:00:08.6]} 41... gxf5 {[%clk 0:00:17.9]} 42. Rf1 {[%clk 0:00:09.1]}
42... Be3 {[%clk 0:00:17.4]} 43. Nc6 {[%clk 0:00:09]} 43... Rc4 {[%clk
0:00:16.7]} 44. b5 {[%clk 0:00:09.3]} 44... Rxa4 {[%clk 0:00:16.7]} 45. Kg2
{[%clk 0:00:09.9]} 45... Ra3 {[%clk 0:00:14.7]} 46. Ne7 {[%clk 0:00:08]} 46...
Kg5 {[%clk 0:00:14.4]} 47. Nd5 {[%clk 0:00:08.7]} 47... Bd4 {[%clk 0:00:14]} 48.
Nf4 {[%clk 0:00:08.7]} 48... Kf6 {[%clk 0:00:10.8]} 49. b6 {[%clk 0:00:04.8]}
49... Rb3 {[%clk 0:00:10.8]} 50. Nd5+ {[%clk 0:00:04.8]} 50... Ke5 {[%clk
0:00:10.5]} 51. Nf4 {[%clk 0:00:04.7]} 51... Bxb6 {[%clk 0:00:09.4]} 52. h4
{[%clk 0:00:04.1]} 52... Ke4 {[%clk 0:00:08.1]} 53. Nh3 {[%clk 0:00:04.7]} 53...
Bc7 {[%clk 0:00:05.2]} 54. Nxf2+ {[%clk 0:00:05.1]} 54... Kd5 {[%clk 0:00:04.1]}
55. Nh1 {[%clk 0:00:05.6]} 55... Ke6 {[%clk 0:00:02.9]} 56. Rf3 {[%clk
0:00:04.2]} 56... Rb2+ {[%clk 0:00:03.2]} 57. Rf2 {[%clk 0:00:04.1]} 57... Rb3
{[%clk 0:00:03.3]} 58. Rf3 {[%clk 0:00:04.6]} 58... Rb1 {[%clk 0:00:03.7]} 59.
Rf1 {[%clk 0:00:04.1]} 59... Rb2+ {[%clk 0:00:03.8]} 60. Rf2 {[%clk 0:00:04.6]}
60... Rb3 {[%clk 0:00:04.2]} 61. Rf3 {[%clk 0:00:05.1]} 1/2-1/2